[Event "Live Chess"]
[Site "Chess.com"]
[Date "2024.06.02"]
[Round "-"]
[White "RamsayFlayer"]
[Black "CarmelJane"]
[Result "1-0"]
[WhiteElo "1936"]
[BlackElo "2010"]
[TimeControl "300"]
[EndTime "5:33:03 PDT"]
[Termination "RamsayFlayer won by resignation"]

1. e4 {[%clk 0:04:58.4]} 1... c5 {[%clk 0:04:58.3]} 2. c3 {[%clk 0:04:57]} 2...
e6 {[%clk 0:04:57]} 3. d4 {[%clk 0:04:56.5]} 3... cxd4 {[%clk 0:04:56.9]} 4.
cxd4 {[%clk 0:04:56]} 4... Nf6 {[%clk 0:04:52.4]} 5. Nc3 {[%clk 0:04:54.3]} 5...
d6 {[%clk 0:04:37.7]} 6. Nf3 {[%clk 0:04:52.4]} 6... a6 {[%clk 0:04:29.3]} 7.
Bf4 {[%clk 0:04:42]} 7... Nc6 {[%clk 0:04:25.9]} 8. Be2 {[%clk 0:04:36.4]} 8...
Be7 {[%clk 0:04:23.4]} 9. O-O {[%clk 0:04:34.7]} 9... O-O {[%clk 0:04:20.6]} 10.
a3 {[%clk 0:04:26.7]} 10... b5 {[%clk 0:04:05.9]} 11. b4 {[%clk 0:04:20.7]}
11... Bb7 {[%clk 0:04:00.9]} 12. Qb3 {[%clk 0:04:12.6]} 12... d5 {[%clk
0:03:39.2]} 13. exd5 {[%clk 0:04:00.5]} 13... Nxd5 {[%clk 0:03:36.7]} 14. Nxd5
{[%clk 0:03:59.1]} 14... exd5 {[%clk 0:03:35.2]} 15. Rfe1 {[%clk 0:03:50.1]}
15... Bf6 {[%clk 0:03:32.5]} 16. Rad1 {[%clk 0:03:44.6]} 16... Ne7 {[%clk
0:03:30]} 17. Be5 {[%clk 0:03:31.1]} 17... Ng6 {[%clk 0:03:19.1]} 18. Bxf6
{[%clk 0:03:25.4]} 18... Qxf6 {[%clk 0:03:13.3]} 19. Rc1 {[%clk 0:03:18.7]}
19... Rac8 {[%clk 0:03:10.2]} 20. Bd3 {[%clk 0:03:16.4]} 20... Nf4 {[%clk
0:03:03.9]} 21. Bf1 {[%clk 0:02:58.6]} 21... Ne6 {[%clk 0:02:45.2]} 22. Qd3
{[%clk 0:02:28.4]} 22... Qf4 {[%clk 0:02:37.2]} 23. g3 {[%clk 0:02:18]} 23...
Qh6 {[%clk 0:02:30.8]} 24. Qe3 {[%clk 0:02:04.3]} 24... Qf6 {[%clk 0:02:01.5]}
25. Ne5 {[%clk 0:02:00]} 25... Ng5 {[%clk 0:01:43.8]} 26. Nd7 {[%clk 0:01:43.5]}
26... Nf3+ {[%clk 0:01:36.7]} 27. Kh1 {[%clk 0:01:41.2]} 27... Qg5 {[%clk
0:01:12.1]} 28. Qxg5 {[%clk 0:01:31.2]} 28... Nxg5 {[%clk 0:01:12]} 29. Nxf8
{[%clk 0:01:28.8]} 29... Rxf8 {[%clk 0:01:11.9]} 30. Rc7 {[%clk 0:01:25.3]}
30... Bc8 {[%clk 0:01:10.5]} 31. Bg2 {[%clk 0:01:16.2]} 31... Be6 {[%clk
0:01:09.1]} 32. Re5 {[%clk 0:01:08.7]} 32... h6 {[%clk 0:01:02.9]} 33. Bxd5
{[%clk 0:01:05.2]} 33... Bxd5+ {[%clk 0:00:59.4]} 34. Rxd5 {[%clk 0:01:03.6]}
34... Re8 {[%clk 0:00:57.6]} 35. Kg2 {[%clk 0:01:00.7]} 35... Re2 {[%clk
0:00:54.3]} 36. h4 {[%clk 0:00:57.1]} 36... Ne4 {[%clk 0:00:53.4]} 37. Rd8+
{[%clk 0:00:51.8]} 37... Kh7 {[%clk 0:00:52.1]} 38. Rxf7 {[%clk 0:00:51]} 38...
Rxf2+ {[%clk 0:00:51.6]} 39. Rxf2 {[%clk 0:00:49.3]} 1-0

[Event "Live Chess"]
[Site "Chess.com"]
[Date "2024.06.02"]
[Round "-"]
[White "gmnorfolk"]
[Black "PETROMICH1967"]
[Result "1-0"]
[WhiteElo "2149"]
[BlackElo "1352"]
[TimeControl "300"]
[EndTime "5:33:18 PDT"]
[Termination "gmnorfolk won on time"]

1. c4 {[%clk 0:04:57.5]} 1... Nf6 {[%clk 0:04:54.7]} 2. Nc3 {[%clk 0:04:56.3]}
2... g6 {[%clk 0:04:54]} 3. Nf3 {[%clk 0:04:47.7]} 3... Bg7 {[%clk 0:04:53.1]}
4. g3 {[%clk 0:04:43.9]} 4... d6 {[%clk 0:04:52.4]} 5. Bg2 {[%clk 0:04:43.2]}
5... e5 {[%clk 0:04:51.8]} 6. O-O {[%clk 0:04:42.5]} 6... c6 {[%clk 0:04:50.9]}
7. d4 {[%clk 0:04:42]} 7... e4 {[%clk 0:04:45.7]} 8. Ng5 {[%clk 0:04:39.3]} 8...
d5 {[%clk 0:04:43.8]} 9. cxd5 {[%clk 0:04:38.2]} 9... cxd5 {[%clk 0:04:42]} 10.
f3 {[%clk 0:04:38.1]} 10... h6 {[%clk 0:04:34.4]} 11. Nh3 {[%clk 0:04:26.9]}
11... O-O {[%clk 0:04:27.5]} 12. Nf2 {[%clk 0:04:21.7]} 12... Nc6 {[%clk
0:04:09.7]} 13. fxe4 {[%clk 0:04:17.1]} 13... dxe4 {[%clk 0:04:08]} 14. d5
{[%clk 0:04:16.3]} 14... Nb4 {[%clk 0:03:39.8]} 15. d6 {[%clk 0:04:05.7]} 15...
Re8 {[%clk 0:03:33.4]} 16. Nfxe4 {[%clk 0:03:56.7]} 16... Nxe4 {[%clk
0:03:29.9]} 17. Nxe4 {[%clk 0:03:54.5]} 17... Qb6+ {[%clk 0:03:04.8]} 18. Kh1
{[%clk 0:03:49.4]} 18... Bf5 {[%clk 0:02:56.4]} 19. Nc3 {[%clk 0:03:29.8]} 19...
Rad8 {[%clk 0:02:41.3]} 20. e4 {[%clk 0:03:28.2]} 20... Be6 {[%clk 0:02:32.6]}
21. a3 {[%clk 0:03:19.3]} 21... Rxd6 {[%clk 0:02:20.3]} 22. Qe2 {[%clk
0:03:03.4]} 22... Nd3 {[%clk 0:01:55.4]} 23. Bf4 {[%clk 0:03:01.6]} 23... Nxf4
{[%clk 0:01:51.7]} 24. gxf4 {[%clk 0:02:59]} 24... Red8 {[%clk 0:01:40.3]} 25.
f5 {[%clk 0:02:49.5]} 25... gxf5 {[%clk 0:01:35.6]} 26. exf5 {[%clk 0:02:48.1]}
26... Rd2 {[%clk 0:01:31.5]} 27. Qg4 {[%clk 0:02:37.4]} 27... Bd5 {[%clk
0:00:18.7]} 28. Nxd5 {[%clk 0:02:31.2]} 28... R8xd5 {[%clk 0:00:07.5]} 29. Bxd5
{[%clk 0:02:18.6]} 29... Rxd5 {[%clk 0:00:05.3]} 30. Rg1 {[%clk 0:02:17.5]} 1-0

[Event "Live Chess"]
[Site "Chess.com"]
[Date "2024.06.02"]
[Round "-"]
[White "Tatarinov_Maxim"]
[Black "stevochess11"]
[Result "1-0"]
[WhiteElo "2289"]
[BlackElo "1688"]
[TimeControl "300"]
[EndTime "5:33:42 PDT"]
[Termination "Tatarinov_Maxim won by resignation"]

1. Nf3 {[%clk 0:04:57.1]} 1... c5 {[%clk 0:04:58.7]} 2. g3 {[%clk 0:04:56.5]}
2... Nc6 {[%clk 0:04:57.6]} 3. Bg2 {[%clk 0:04:56.1]} 3... g6 {[%clk 0:04:57.5]}
4. O-O {[%clk 0:04:55.6]} 4... Bg7 {[%clk 0:04:57.4]} 5. c4 {[%clk 0:04:55.1]}
5... d5 {[%clk 0:04:57.3]} 6. Nc3 {[%clk 0:04:54.7]} 6... d4 {[%clk 0:04:55.4]}
7. Nb1 {[%clk 0:04:52.9]} 7... f5 {[%clk 0:04:52.7]} 8. d3 {[%clk 0:04:52.2]}
8... e5 {[%clk 0:04:51.6]} 9. Na3 {[%clk 0:04:47.9]} 9... a6 {[%clk 0:04:50.1]}
10. Nc2 {[%clk 0:04:47]} 10... Nf6 {[%clk 0:04:48.7]} 11. b4 {[%clk 0:04:45.3]}
11... b6 {[%clk 0:04:46.9]} 12. Nxe5 {[%clk 0:04:38.3]} 12... Nxe5 {[%clk
0:04:43.5]} 13. Bxa8 {[%clk 0:04:36.8]} 13... Be6 {[%clk 0:04:29.3]} 14. Bg2
{[%clk 0:04:31.9]} 14... h5 {[%clk 0:04:28.1]} 15. bxc5 {[%clk 0:04:24.7]} 15...
bxc5 {[%clk 0:04:25.3]} 16. e3 {[%clk 0:04:22.2]} 16... dxe3 {[%clk 0:04:20.3]}
17. Nxe3 {[%clk 0:04:22.1]} 17... Qxd3 {[%clk 0:04:13.8]} 18. Bb2 {[%clk
0:04:16.2]} 18... Qxd1 {[%clk 0:03:59.2]} 19. Raxd1 {[%clk 0:04:08.5]} 19...
Nxc4 {[%clk 0:03:58]} 20. Nxc4 {[%clk 0:04:04]} 20... Bxc4 {[%clk 0:03:56.9]}
21. Rfe1+ {[%clk 0:04:03.4]} 21... Kf7 {[%clk 0:03:54.9]} 22. Rc1 {[%clk
0:03:59.5]} 22... Bxa2 {[%clk 0:03:50.8]} 23. Rxc5 {[%clk 0:03:58.2]} 23... Rb8
{[%clk 0:03:39.1]} 24. Rc7+ {[%clk 0:03:50.4]} 24... Kg8 {[%clk 0:03:36.3]} 25.
Be5 {[%clk 0:03:39.1]} 25... Re8 {[%clk 0:03:31.5]} 26. Rxg7+ {[%clk 0:03:33]}
26... Kxg7 {[%clk 0:03:29.8]} 27. Bxf6+ {[%clk 0:03:32.2]} 27... Kxf6 {[%clk
0:03:28.9]} 28. Rxe8 {[%clk 0:03:30.9]} 1-0

[Event "Live Chess"]
[Site "Chess.com"]
[Date "2024.06.02"]
[Round "-"]
[White "Duke_of_Bebington"]
[Black "Dhaydon19"]
[Result "0-1"]
[WhiteElo "1616"]
[BlackElo "2641"]
[TimeControl "300"]
[EndTime "5:34:16 PDT"]
[Termination "Dhaydon19 won by resignation"]

1. e4 {[%clk 0:04:58]} 1... e6 {[%clk 0:04:57.7]} 2. d4 {[%clk 0:04:56.7]} 2...
d5 {[%clk 0:04:57.1]} 3. Nd2 {[%clk 0:04:56.2]} 3... dxe4 {[%clk 0:04:56.1]} 4.
Nxe4 {[%clk 0:04:54.6]} 4... Be7 {[%clk 0:04:55.4]} 5. Nf3 {[%clk 0:04:50.4]}
5... Nd7 {[%clk 0:04:54.8]} 6. Bd3 {[%clk 0:04:49.6]} 6... Ngf6 {[%clk
0:04:53.4]} 7. O-O {[%clk 0:04:48.4]} 7... Nxe4 {[%clk 0:04:52.5]} 8. Bxe4
{[%clk 0:04:47.7]} 8... Nf6 {[%clk 0:04:52.2]} 9. Re1 {[%clk 0:04:45.4]} 9...
Nxe4 {[%clk 0:04:50.5]} 10. Rxe4 {[%clk 0:04:44.2]} 10... b6 {[%clk 0:04:50]}
11. Rg4 {[%clk 0:04:41.3]} 11... g6 {[%clk 0:04:46.2]} 12. Bg5 {[%clk
0:04:37.1]} 12... Bb7 {[%clk 0:04:40.6]} 13. Bxe7 {[%clk 0:04:30.1]} 13... Qxe7
{[%clk 0:04:39.2]} 14. Rg3 {[%clk 0:04:29.6]} 14... O-O-O {[%clk 0:04:37.4]} 15.
c3 {[%clk 0:04:28.2]} 15... c5 {[%clk 0:04:33.6]} 16. Qa4 {[%clk 0:04:23.7]}
16... Kb8 {[%clk 0:04:30.5]} 17. dxc5 {[%clk 0:04:20.7]} 17... Qxc5 {[%clk
0:04:27.9]} 18. Nd4 {[%clk 0:04:16.3]} 18... e5 {[%clk 0:04:24.6]} 19. Nb5
{[%clk 0:04:04]} 19... a6 {[%clk 0:04:22]} 20. Na3 {[%clk 0:04:02.6]} 20... f5
{[%clk 0:04:20.3]} 21. Re1 {[%clk 0:03:50.9]} 21... e4 {[%clk 0:04:14.9]} 22.
Nc2 {[%clk 0:03:49.5]} 22... b5 {[%clk 0:04:11]} 23. Qb3 {[%clk 0:03:46.9]}
23... Rd2 {[%clk 0:04:07.4]} 24. Nd4 {[%clk 0:03:40]} 24... Bd5 {[%clk
0:04:04.4]} 25. Qa3 {[%clk 0:03:29]} 25... Qxa3 {[%clk 0:04:01.3]} 26. bxa3
{[%clk 0:03:28.9]} 26... Rxa2 {[%clk 0:03:59.9]} 0-1

[Event "Live Chess"]
[Site "Chess.com"]
[Date "2024.06.02"]
[Round "-"]
[White "IgorSchukin"]
[Black "friarnator"]
[Result "0-1"]
[WhiteElo "1770"]
[BlackElo "2197"]
[TimeControl "300"]
[EndTime "5:34:47 PDT"]
[Termination "friarnator won by resignation"]

1. e4 {[%clk 0:04:43.5]} 1... Nf6 {[%clk 0:04:58.3]} 2. Nc3 {[%clk 0:04:41.7]}
2... d5 {[%clk 0:04:57.3]} 3. exd5 {[%clk 0:04:40.5]} 3... Nxd5 {[%clk
0:04:57.2]} 4. g3 {[%clk 0:04:39.4]} 4... c6 {[%clk 0:04:56.4]} 5. Bg2 {[%clk
0:04:38.6]} 5... Bf5 {[%clk 0:04:56]} 6. d3 {[%clk 0:04:34.1]} 6... e6 {[%clk
0:04:55.5]} 7. Nf3 {[%clk 0:04:33]} 7... Be7 {[%clk 0:04:53.8]} 8. O-O {[%clk
0:04:31.3]} 8... O-O {[%clk 0:04:53.5]} 9. Re1 {[%clk 0:04:29.3]} 9... Nd7
{[%clk 0:04:53.1]} 10. h3 {[%clk 0:04:27]} 10... h6 {[%clk 0:04:52.3]} 11. g4
{[%clk 0:04:24.8]} 11... Bh7 {[%clk 0:04:51.5]} 12. Nxd5 {[%clk 0:04:15.4]}
12... cxd5 {[%clk 0:04:50]} 13. Bf4 {[%clk 0:04:12.9]} 13... Rc8 {[%clk
0:04:49.3]} 14. c3 {[%clk 0:04:11.3]} 14... b5 {[%clk 0:04:46.3]} 15. a3 {[%clk
0:04:09]} 15... a5 {[%clk 0:04:45]} 16. d4 {[%clk 0:04:06.4]} 16... Qb6 {[%clk
0:04:40.6]} 17. Qd2 {[%clk 0:04:01]} 17... b4 {[%clk 0:04:38.5]} 18. axb4 {[%clk
0:03:58.7]} 18... axb4 {[%clk 0:04:38.4]} 19. Ne5 {[%clk 0:03:55.3]} 19... Nxe5
{[%clk 0:04:36.2]} 20. Bxe5 {[%clk 0:03:52.7]} 20... bxc3 {[%clk 0:04:35.8]} 21.
bxc3 {[%clk 0:03:51.1]} 21... Qb3 {[%clk 0:04:33.4]} 22. Rec1 {[%clk 0:03:46.6]}
22... Rc6 {[%clk 0:04:25.9]} 23. c4 {[%clk 0:03:28.8]} 23... Rxc4 {[%clk
0:04:22.3]} 24. Rxc4 {[%clk 0:03:27.3]} 24... Qxc4 {[%clk 0:04:22.2]} 25. Rc1
{[%clk 0:03:25.4]} 25... Qd3 {[%clk 0:04:19.7]} 26. Qa5 {[%clk 0:03:14.3]} 26...
Bg5 {[%clk 0:04:14.1]} 27. f4 {[%clk 0:03:08.5]} 27... Qe3+ {[%clk 0:04:09.1]}
28. Kh2 {[%clk 0:03:01]} 28... Bxf4+ {[%clk 0:04:07.1]} 29. Bxf4 {[%clk
0:02:58.9]} 29... Qxf4+ {[%clk 0:04:07]} 30. Kg1 {[%clk 0:02:56.8]} 30... Qxc1+
{[%clk 0:04:06.9]} 31. Kh2 {[%clk 0:02:55.9]} 31... Qf4+ {[%clk 0:04:01.9]} 32.
Kg1 {[%clk 0:02:54.6]} 32... Be4 {[%clk 0:04:01.8]} 0-1

[Event "Live Chess"]
[Site "Chess.com"]
[Date "2024.06.02"]
[Round "-"]
[White "yarek"]
[Black "KeithArkell"]
[Result "0-1"]
[WhiteElo "1760"]
[BlackElo "2418"]
[TimeControl "300"]
[EndTime "5:34:54 PDT"]
[Termination "KeithArkell won by resignation"]

1. e4 {[%clk 0:04:55.7]} 1... c6 {[%clk 0:04:59.4]} 2. Nf3 {[%clk 0:04:52.3]}
2... d5 {[%clk 0:04:58.5]} 3. d3 {[%clk 0:04:50.7]} 3... Bg4 {[%clk 0:04:56.7]}
4. Be2 {[%clk 0:04:42.4]} 4... e6 {[%clk 0:04:56]} 5. h3 {[%clk 0:04:40.8]} 5...
Bxf3 {[%clk 0:04:54.8]} 6. Bxf3 {[%clk 0:04:39.6]} 6... Nd7 {[%clk 0:04:54.2]}
7. O-O {[%clk 0:04:37.7]} 7... Ngf6 {[%clk 0:04:53.4]} 8. Re1 {[%clk 0:04:34]}
8... dxe4 {[%clk 0:04:51]} 9. dxe4 {[%clk 0:04:32]} 9... e5 {[%clk 0:04:50.5]}
10. Be3 {[%clk 0:04:28.1]} 10... Bc5 {[%clk 0:04:49.6]} 11. Nc3 {[%clk
0:04:25.7]} 11... Bxe3 {[%clk 0:04:48.3]} 12. Rxe3 {[%clk 0:04:24.5]} 12... Nc5
{[%clk 0:04:47.5]} 13. Qe2 {[%clk 0:04:16.9]} 13... a5 {[%clk 0:04:46.5]} 14.
Rd1 {[%clk 0:04:14.8]} 14... Qe7 {[%clk 0:04:45.7]} 15. a4 {[%clk 0:04:11.2]}
15... O-O {[%clk 0:04:44.5]} 16. g3 {[%clk 0:03:55.3]} 16... Rfd8 {[%clk
0:04:40.9]} 17. Kh2 {[%clk 0:03:49.2]} 17... Rd4 {[%clk 0:04:39.8]} 18. Bg2
{[%clk 0:03:28.7]} 18... Rad8 {[%clk 0:04:37.8]} 19. f3 {[%clk 0:03:22.6]} 19...
Rxd1 {[%clk 0:04:36.2]} 20. Nxd1 {[%clk 0:03:21.1]} 20... Nxa4 {[%clk
0:04:34.7]} 21. c3 {[%clk 0:03:09.3]} 21... Nc5 {[%clk 0:04:32.7]} 22. b4 {[%clk
0:03:02]} 22... axb4 {[%clk 0:04:31.6]} 23. cxb4 {[%clk 0:03:00.5]} 23... Ne6
{[%clk 0:04:30.8]} 24. Nc3 {[%clk 0:02:57.6]} 24... Qxb4 {[%clk 0:04:28.8]} 25.
f4 {[%clk 0:02:49.4]} 25... exf4 {[%clk 0:04:26.8]} 26. gxf4 {[%clk 0:02:48]}
26... Nxf4 {[%clk 0:04:26.1]} 27. Qf3 {[%clk 0:02:41.5]} 27... Ng6 {[%clk
0:04:24.1]} 28. e5 {[%clk 0:02:39.8]} 28... Nd5 {[%clk 0:04:15.6]} 29. e6 {[%clk
0:02:37.9]} 29... fxe6 {[%clk 0:04:09.4]} 30. Nxd5 {[%clk 0:02:30.1]} 30... exd5
{[%clk 0:04:04.7]} 31. Qf5 {[%clk 0:02:17.9]} 31... Qf4+ {[%clk 0:04:03.3]} 32.
Qxf4 {[%clk 0:02:16.5]} 32... Nxf4 {[%clk 0:04:02.6]} 0-1

[Event "Live Chess"]
[Site "Chess.com"]
[Date "2024.06.02"]
[Round "-"]
[White "slava_ukr"]
[Black "GwaryTek"]
[Result "0-1"]
[WhiteElo "2354"]
[BlackElo "1849"]
[TimeControl "300"]
[EndTime "5:35:07 PDT"]
[Termination "GwaryTek won by resignation"]

1. e4 {[%clk 0:04:42.3]} 1... Nf6 {[%clk 0:04:52]} 2. Nc3 {[%clk 0:04:39.3]}
2... d5 {[%clk 0:04:50.5]} 3. e5 {[%clk 0:04:38.5]} 3... Ne4 {[%clk 0:04:48.7]}
4. Nxe4 {[%clk 0:04:37]} 4... dxe4 {[%clk 0:04:47.7]} 5. d4 {[%clk 0:04:36.6]}
5... exd3 {[%clk 0:04:46.8]} 6. Bxd3 {[%clk 0:04:35.6]} 6... Nc6 {[%clk
0:04:44.5]} 7. Bf4 {[%clk 0:04:33.9]} 7... Qd5 {[%clk 0:04:37.4]} 8. Nf3 {[%clk
0:03:53.9]} 8... Bg4 {[%clk 0:04:32.6]} 9. h3 {[%clk 0:03:39.5]} 9... Bxf3
{[%clk 0:04:27.1]} 10. Qxf3 {[%clk 0:03:39]} 10... Qxf3 {[%clk 0:04:26]} 11.
gxf3 {[%clk 0:03:38.7]} 11... e6 {[%clk 0:04:24.9]} 12. O-O-O {[%clk 0:03:36.4]}
12... O-O-O {[%clk 0:04:23.3]} 13. Be4 {[%clk 0:03:32.7]} 13... Bc5 {[%clk
0:04:05.8]} 14. Bxc6 {[%clk 0:03:31.5]} 14... bxc6 {[%clk 0:04:02.9]} 15. Be3
{[%clk 0:03:30.8]} 15... Bb6 {[%clk 0:03:58.6]} 16. f4 {[%clk 0:03:24.6]} 16...
Rd5 {[%clk 0:03:55.9]} 17. c4 {[%clk 0:03:23]} 17... Bxe3+ {[%clk 0:03:28.8]}
18. fxe3 {[%clk 0:03:21.9]} 18... Rd7 {[%clk 0:03:14.8]} 19. Rxd7 {[%clk
0:03:17.2]} 19... Kxd7 {[%clk 0:03:13.4]} 20. Rg1 {[%clk 0:03:15.3]} 20... g6
{[%clk 0:03:10.1]} 21. Kc2 {[%clk 0:03:14.2]} 21... Rb8 {[%clk 0:03:03.3]} 22.
h4 {[%clk 0:03:08.6]} 22... h5 {[%clk 0:03:01.1]} 23. a3 {[%clk 0:03:07.2]}
23... a5 {[%clk 0:02:57]} 24. b3 {[%clk 0:03:05.8]} 24... Ke7 {[%clk 0:02:54.9]}
25. Kc3 {[%clk 0:03:04.5]} 25... c5 {[%clk 0:02:46.6]} 26. Rb1 {[%clk
0:02:59.9]} 26... f6 {[%clk 0:02:37.3]} 27. b4 {[%clk 0:02:33.1]} 27... axb4+
{[%clk 0:02:06.3]} 28. axb4 {[%clk 0:02:31.8]} 28... fxe5 {[%clk 0:02:02.8]} 29.
b5 {[%clk 0:02:25.2]} 29... exf4 {[%clk 0:02:00.9]} 30. exf4 {[%clk 0:02:24.5]}
30... Rf8 {[%clk 0:01:57.9]} 31. Re1 {[%clk 0:02:11.3]} 31... Rxf4 {[%clk
0:01:50.8]} 32. Re5 {[%clk 0:02:10.1]} 32... Kd6 {[%clk 0:01:47.2]} 33. Rg5
{[%clk 0:02:07.9]} 33... Rg4 {[%clk 0:01:39.1]} 34. Rxg4 {[%clk 0:02:06.8]}
34... hxg4 {[%clk 0:01:37.1]} 35. Kd3 {[%clk 0:02:06.2]} 35... Ke5 {[%clk
0:01:35.3]} 36. Ke3 {[%clk 0:02:05.5]} 36... Kf5 {[%clk 0:01:14.1]} 37. Ke2
{[%clk 0:02:04.5]} 37... Kf4 {[%clk 0:01:13]} 38. Kf2 {[%clk 0:02:03.8]} 38...
g3+ {[%clk 0:01:12]} 39. Kg2 {[%clk 0:02:03.1]} 39... Kg4 {[%clk 0:01:11.2]} 0-1

[Event "Live Chess"]
[Site "Chess.com"]
[Date "2024.06.02"]
[Round "-"]
[White "AlanBstard10"]
[Black "juniortay"]
[Result "0-1"]
[WhiteElo "1228"]
[BlackElo "2339"]
[TimeControl "300"]
[EndTime "5:35:19 PDT"]
[Termination "juniortay won by checkmate"]

1. b4 {[%clk 0:04:57.6]} 1... e5 {[%clk 0:04:58.6]} 2. Bb2 {[%clk 0:04:57]} 2...
Bxb4 {[%clk 0:04:57.7]} 3. Bxe5 {[%clk 0:04:55.5]} 3... Nf6 {[%clk 0:04:57.2]}
4. c3 {[%clk 0:04:53.5]} 4... Ba5 {[%clk 0:04:53.9]} 5. d4 {[%clk 0:04:39.8]}
5... O-O {[%clk 0:04:52.6]} 6. Qa4 {[%clk 0:04:34.6]} 6... Bb6 {[%clk
0:04:47.1]} 7. Nf3 {[%clk 0:04:28.7]} 7... Re8 {[%clk 0:04:45.5]} 8. Nbd2 {[%clk
0:04:23.6]} 8... Nc6 {[%clk 0:04:28]} 9. Nc4 {[%clk 0:04:11.9]} 9... Nxe5 {[%clk
0:04:23.1]} 10. Nfxe5 {[%clk 0:04:07.6]} 10... Nd5 {[%clk 0:04:04.7]} 11. Nxb6
{[%clk 0:04:05.1]} 11... Nxb6 {[%clk 0:04:02.7]} 12. Qc2 {[%clk 0:04:01.5]}
12... d6 {[%clk 0:03:59.9]} 13. Nf3 {[%clk 0:03:53.1]} 13... Qf6 {[%clk
0:03:57.3]} 14. g3 {[%clk 0:03:46.9]} 14... Qxf3 {[%clk 0:03:54.4]} 15. Rg1
{[%clk 0:03:42.1]} 15... Bf5 {[%clk 0:03:50.2]} 16. Qb3 {[%clk 0:03:38.4]} 16...
Bd3 {[%clk 0:03:40.4]} 17. e3 {[%clk 0:03:35.3]} 17... Bxf1 {[%clk 0:03:37.3]}
18. Rxf1 {[%clk 0:03:34.7]} 18... Nd5 {[%clk 0:03:30]} 19. Qxb7 {[%clk 0:03:30]}
19... Rab8 {[%clk 0:03:19.2]} 20. Qxa7 {[%clk 0:03:27.5]} 20... Rb2 {[%clk
0:03:15.2]} 21. Qa6 {[%clk 0:03:20.2]} 21... Rxe3+ {[%clk 0:03:08.2]} 22. fxe3
{[%clk 0:03:16.9]} 22... Qxe3+ {[%clk 0:03:07.3]} 23. Kd1 {[%clk 0:03:07.9]}
23... Qd2# {[%clk 0:03:06.2]} 0-1

[Event "Live Chess"]
[Site "Chess.com"]
[Date "2024.06.02"]
[Round "-"]
[White "ProfPoisson"]
[Black "elephantgerrald"]
[Result "1-0"]
[WhiteElo "1321"]
[BlackElo "871"]
[TimeControl "300"]
[EndTime "5:35:37 PDT"]
[Termination "ProfPoisson won by checkmate"]

1. e4 {[%clk 0:04:56.3]} 1... e5 {[%clk 0:04:58.3]} 2. Nf3 {[%clk 0:04:54]} 2...
Nf6 {[%clk 0:04:55.8]} 3. Nxe5 {[%clk 0:04:32.4]} 3... Nxe4 {[%clk 0:04:51.9]}
4. Qe2 {[%clk 0:04:26.9]} 4... d5 {[%clk 0:04:45.1]} 5. Nf3 {[%clk 0:04:15.2]}
5... Be6 {[%clk 0:04:37.7]} 6. Qb5+ {[%clk 0:04:07.4]} 6... Nc6 {[%clk 0:04:22]}
7. Qxb7 {[%clk 0:04:05.4]} 7... Na5 {[%clk 0:03:55.2]} 8. Qb5+ {[%clk
0:04:01.8]} 8... Bd7 {[%clk 0:03:39.8]} 9. Qxa5 {[%clk 0:04:00.2]} 9... Bd6
{[%clk 0:03:35.4]} 10. Qxd5 {[%clk 0:03:57.8]} 10... O-O {[%clk 0:03:28.9]} 11.
Be2 {[%clk 0:03:51.8]} 11... Nf6 {[%clk 0:03:20.1]} 12. Qd3 {[%clk 0:03:44.1]}
12... Re8 {[%clk 0:03:10.7]} 13. O-O {[%clk 0:03:41.8]} 13... Bc6 {[%clk
0:03:06.1]} 14. Nc3 {[%clk 0:03:36.8]} 14... h6 {[%clk 0:02:47.5]} 15. Qc4
{[%clk 0:03:22.2]} 15... Bxf3 {[%clk 0:02:31.2]} 16. Bxf3 {[%clk 0:03:18.8]}
16... Rb8 {[%clk 0:02:23.1]} 17. d3 {[%clk 0:03:10.1]} 17... Qe7 {[%clk
0:02:18.2]} 18. Bxh6 {[%clk 0:02:58.2]} 18... Qe5 {[%clk 0:01:57.5]} 19. g3
{[%clk 0:02:36]} 19... Rb4 {[%clk 0:01:39.7]} 20. Qc6 {[%clk 0:02:07]} 20... Rh4
{[%clk 0:01:15.1]} 21. Rae1 {[%clk 0:01:42.5]} 21... Qxe1 {[%clk 0:00:34.5]} 22.
Rxe1 {[%clk 0:01:40.9]} 22... Rxe1+ {[%clk 0:00:33.3]} 23. Kg2 {[%clk
0:01:40.3]} 23... Rxh6 {[%clk 0:00:32]} 24. Ne4 {[%clk 0:01:29.2]} 24... Nxe4
{[%clk 0:00:29.1]} 25. dxe4 {[%clk 0:01:26.8]} 25... Bxg3 {[%clk 0:00:15.3]} 26.
Qe8+ {[%clk 0:01:24.1]} 26... Kh7 {[%clk 0:00:13.1]} 27. fxg3 {[%clk 0:01:21.9]}
27... Rf6 {[%clk 0:00:09.7]} 28. Kf2 {[%clk 0:01:15.9]} 28... Rc1 {[%clk
0:00:08.3]} 29. Qb5 {[%clk 0:01:10]} 29... Rxc2+ {[%clk 0:00:07]} 30. Ke3 {[%clk
0:01:06.1]} 30... Kg6 {[%clk 0:00:06.4]} 31. Qh5# {[%clk 0:01:01.6]} 1-0